Cogmind - Beta 9.5 @@@ ROGUE MODE // 2020.04.08 @ 18:42:01 Player: Gobbopathe Result: Destroyed by Y-45 Defender with Beam Rifle Performance ------------- Evolutions (1) 500 Regions Visited (2) 400 Robots Destroyed (17) 85 Value Destroyed (405) 405 Prototype IDs (3) 60 Alien Tech Used (0) 0 Bonus (0) 0 TOTAL SCORE: 1450 Bonus ------- None Cogmind --------- Core Integrity 0/400 Matter 300/300 Energy 82/100 System Corruption 0% Temperature Cool (9) Movement Core (350) Ox6 Location -9/Materials Parts ------- > --- POWER (1) -------- (None) > --- PROPULSION (2) --- (None) > --- UTILITY (4) ------ Large Storage Unit > --- WEAPON (2) ------- Heavy Hammer > --- INVENTORY (10) --- Improved Sensor Array Hacking Suite Particle Gun Mini Grenade Launcher Peak State ------------ > --- POWER ------------ Ion Engine > --- PROPULSION ------- Wheel Wheel > --- UTILITY ---------- Cooling System Large Storage Unit Improved Sensor Array Light Armor Plating > --- WEAPON ----------- EM Pulse Gun Assault Rifle > --- INVENTORY -------- Wheel Wheel Light Armor Plating Light Armor Plating Small Laser Mini Grenade Launcher Mining Laser Heavy Hammer [Rating: 12] Favorites ----------- Power Ion Engine Engine Ion Engine Propulsion Wheel Wheel Wheel Utility Light Armor Plating Device Cooling System Storage Large Storage Unit Protection Light Armor Plating Weapon Assault Rifle Energy Gun EM Pulse Gun Ballistic Gun Assault Rifle Launcher Mini Grenade Launcher Special Weapon Mining Laser Impact Weapon Heavy Hammer Build | -11 -10 -9 ------- Run | Scr Mat Mat Slots Evolved 2 | . . 2 Power . | . . . Propulsion . | . . . Utility 2 | . . 2 Weapon . | . . . Parts Attached 26 | 6 13 7 Power 3 | 1 2 . Engine 3 | 1 2 . Core . | . . . Reactor . | . . . Propulsion 5 | 2 1 2 Treads . | . . . Leg . | . . . Wheel 5 | 2 1 2 Hover . | . . . Flight . | . . . Utility 9 | 1 4 4 Device 2 | . . 2 Storage 2 | 1 1 . Processor . | . . . Hackware . | . . . Protection 5 | . 3 2 Artifact . | . . . Weapon 9 | 2 6 1 Energy Gun 3 | 1 2 . Energy Cannon . | . . . Ballistic Gun 3 | 1 2 . Ballistic Cannon . | . . . Launcher 1 | . 1 . Special Weapon 1 | . 1 . Impact Weapon 1 | . . 1 Slashing Weapon . | . . . Piercing Weapon . | . . . Special Melee Weapon . | . . . Unidentified Prototypes . | . . . Parts Lost 13 | . 1 12 Power 1 | . . 1 Propulsion 4 | . . 4 Utility 5 | . . 5 Weapon 3 | . 1 2 Highest Loss Streak 8 | . 1 8 Average Slot Usage (%) 95 | . 99 81 Engine 12 | . 14 7 Wheel 25 | . 28 17 Device 3 | . . 19 Storage 13 | . 14 11 Protection 13 | . 13 10 Energy Gun 7 | . 7 4 Ballistic Gun 16 | . 19 5 Impact Weapon 1 | . . 4 Naked Turns . | . . . Heaviest Build 31 | 13 28 31 Greatest Support 26 | 26 26 20 Greatest Overweight (x) 2 | . 1 2 Average Overweight (x) . | . . 1 Largest Inventory Capacity 10 | 6 10 10 Average Capacity 9 | 5 9 10 Most Carried 10 | 2 9 10 Average Carried 5 | 1 5 6 Final Capacity 10 | 6 10 10 Final Carried 9 | 2 9 4 Class Distribution -------------------- 100% | Mutant Dominant Class ---------------- Mutant | -10/Materials Mutant | -9/Materials Resources | -11 -10 -9 ----------- Run | Scr Mat Mat Matter Collected 496 | 239 227 30 Remotely . | . . . Salvage Created 612 | . 481 131 Parts 30 | . 25 5 Haulers Intercepted 2 | . 2 . Recyclers Shooed . | . . . Parts Field Recycled . | . . . Retrieved Matter . | . . . Parts Self-Destructed . | . . . Prevented . | . . . Kills | -11 -10 -9 ------- Run | Scr Mat Mat Combat Hostiles Destroyed 13 | . 9 4 Melee 3 | . . 3 Guns 9 | . 9 . Classes Destroyed 6 | . 5 1 Hauler 2 | . 2 . Recycler 1 | . 1 . Watcher 1 | . 1 . Swarmer 5 | . 3 2 Grunt 7 | . 6 1 Sentry 1 | . . 1 Best Kill Streak 3 | . 3 3 Combat Bots Only 3 | . 3 3 Max Kills in Single Turn 2 | . 2 1 Gunslinging 1 | . 1 . Exploded . | . . . Melee 1 | . . 1 Uniques/NPCs Destroyed . | . . . Combat | -11 -10 -9 -------- Run | Scr Mat Mat Damage Taken 1591 | . 343 1248 Core 427 | . 26 401 Absorbed by Shields . | . . . Core Remaining (%) 94 | 100 89 . Volleys Fired 41 | . 39 2 Largest 2 | . 2 2 Hottest 100 | . 100 60 Shots Fired 78 | . 74 4 Gun 75 | . 71 4 Cannon . | . . . Launcher . | . . . Special 3 | . 3 . Kinetic 58 | . 56 2 Thermal 5 | . 5 . Explosive . | . . . Electromagnetic 15 | . 13 2 Robot Hit Streak 7 | . 7 1 Robot Miss Streak 6 | . 6 2 Penetration Max . | . . . Secondary Targets 2 | . 2 . Max Gunslinging Chain 1 | . 1 . Shots Hit Robots 61 | . 41 20 Core Hits 25 | . 23 2 Critical Hits 2 | . 2 . Critical Kills . | . . . Critical Parts Destroyed 2 | . 2 . Melee Attacks 24 | . . 24 Impact 24 | . . 24 Slashing . | . . . Piercing . | . . . Sneak Attacks . | . . . Combat Hostiles . | . . . Follow-up Attacks . | . . . Damage Inflicted 1037 | . 516 521 Guns 527 | . 516 11 Cannons . | . . . Explosions . | . . . Melee 505 | . . 505 Ramming 5 | . . 5 Kinetic 381 | . 381 . Thermal 10 | . 10 . Explosive . | . . . Electromagnetic 136 | . 125 11 Impact 505 | . . 505 Slashing . | . . . Piercing . | . . . Highest Corruption . | . . . Average Corruption . | . . . Corruption Purged . | . . . Overload Shots . | . . . Overflow Damage 63 | . . 63 Projectiles . | . . . Explosions . | . . . Melee 63 | . . 63 Knockbacks . | . . . Impact . | . . . Kinetic . | . . . Secondary . | . . . Self-Inflicted Damage 2 | . . 2 Shots . | . . . Rammed 1 | . . 1 Targets Rammed 1 | . . 1 Kicked . | . . . Crushed . | . . . Highest Temperature 62 | . 62 . Average Temperature 20 | . 20 . Received Heat Transfer 534 | . 138 396 Siege Activations . | . . . Robots Corrupted . | . . . Combat Hostiles . | . . . Parts Fried 3 | . . 3 Impact Corruptions 4 | . . 4 Robots Melted . | . . . Combat Hostiles . | . . . Parts Melted . | . . . Heat Transferred 25 | . 25 . Parts Sabotaged . | . . . Parts Stolen . | . . . Parts Stripped . | . . . Power Chain Reactions . | . . . Missiles Intercepted . | . . . Alert | -11 -10 -9 ------- Run | Scr Mat Mat Peak Influence 165 | . 165 100 Average Influence 73 | . 78 67 Maximum Alert Level . | . . . Low Security (%) 100 | 100 100 100 Level 1 . | . . . Level 2 . | . . . Level 3 . | . . . Level 4 . | . . . Level 5 . | . . . High Security . | . . . Max Security . | . . . Squads Dispatched 2 | . 1 1 Investigation 2 | . 1 1 Extermination . | . . . Reinforcement . | . . . Assault . | . . . Garrison . | . . . Intercept . | . . . Construction Impeded . | . . . Haulers Reinforced . | . . . Stealth | -11 -10 -9 --------- Run | Scr Mat Mat Distress Signals 1 | . 1 . Communications Jammed . | . . . Distress Signals . | . . . Times Spotted 26 | . 14 12 Peak Tracking Total 7 | . 5 7 Tactical Retreats 5 | . 1 4 Traps | -11 -10 -9 ------- Run | Scr Mat Mat Traps Triggered . | . . . Indirectly . | . . . Trap Hack Attempts . | . . . Triggered . | . . . Disarmed 6 | . 6 . Reprogrammed . | . . . Reused . | . . . Traps Extracted . | . . . Installed . | . . . Triggered . | . . . Machines | -11 -10 -9 ---------- Run | Scr Mat Mat Machines Disabled 2 | . 1 1 Max in Single Turn 1 | . 1 1 Machines Sabotaged . | . . . Garrisons Compromised . | . . . Overloaded Fab Kills . | . . . Fab Network Shutdowns . | . . . Hacking | -11 -10 -9 --------- Run | Scr Mat Mat Machines Accessed 11 | . 10 1 Terminals 8 | . 8 . Fabricators . | . . . Repair Stations . | . . . Recycling Units 2 | . 2 . Scanalyzers 1 | . . 1 Garrison Access . | . . . Total Hacks 52 | . 37 15 Successful 37 | . 22 15 Failed 15 | . 15 . Catastrophic . | . . . Database Lockouts . | . . . Manual 19 | . 19 . Terminals 33 | . 33 . Fabricators . | . . . Repair Stations . | . . . Recycling Units 4 | . 4 . Scanalyzers 15 | . . 15 Garrison Access . | . . . Terminal Hacks 12 | . 12 . Part Schematic 2 | . 2 . Prototype ID Bank 2 | . 2 . Terminal Index 1 | . 1 . Locate Traps 1 | . 1 . Disarm Traps 1 | . 1 . Security Status 1 | . 1 . Surveillance Status 1 | . 1 . Recall Investigation 1 | . 1 . Zone Layout 2 | . 2 . Fabricator Hacks . | . . . Repair Station Hacks . | . . . Recycling Unit Hacks 4 | . 4 . Process 2 | . 2 . Report Inventory 1 | . 1 . Retrieve Matter 1 | . 1 . Scanalyzer 15 | . . 15 Insert Component 6 | . . 6 Analyze 9 | . . 9 Garrison Access Hacks . | . . . Unauthorized Hacks 17 | . 17 . Terminals 6 | . 6 . Track 1 | . 1 . Assimilate 1 | . 1 . Botnet 3 | . 3 . Operators 1 | . 1 . Fabricators . | . . . Repair Stations . | . . . Recycling Units . | . . . Scanalyzers . | . . . Garrison Access . | . . . Data Cores Recovered . | . . . Used . | . . . Hacking Detections 10 | . 9 1 Full Trace Events 1 | . 1 . Feedback Events . | . . . Feedback Blocked . | . . . Robot Schematics Acquired . | . . . Robots Built . | . . . Matter . | . . . Time . | . . . Total Robot Build Rating . | . . . Part Schematics Acquired 8 | . 2 6 Parts Built . | . . . Matter . | . . . Time . | . . . Total Part Build Rating . | . . . Parts Repaired . | . . . Time . | . . . Parts Recycled . | . . . Recycled Matter 420 | . 420 . Retrieved Matter 587 | . 587 . Retrieved Components . | . . . Parts Scanalyzed 6 | . . 6 Part Schematics Acquired 6 | . . 6 Parts Damaged . | . . . Bothacking | -11 -10 -9 ------------ Run | Scr Mat Mat Used RIF Installer . | . . . Robots Hacked . | . . . Non-combat . | . . . Combat . | . . . Robot Hacks Applied . | . . . Relay Couplers Released . | . . . Robots Rewired . | . . . Allies Hacked . | . . . Hacks Repelled . | . . . Allies | -11 -10 -9 -------- Run | Scr Mat Mat Total Allies 1 | . 1 . Largest Group 1 | . 1 1 Highest-Rated Group 10 | . 10 10 Highest-Rated Ally 10 | . 10 10 Total Orders 3 | . . 3 GOTO 3 | . . 3 Ally Attacks . | . . . Total Damage . | . . . Kills . | . . . Allies Corrupted . | . . . Allies Melted . | . . . Intel | -11 -10 -9 ------- Run | Scr Mat Mat Robot Analysis Total . | . . . Derelict Logs Recovered . | . . . Drone Launches . | . . . Drone Recoveries . | . . . Exploration | -11 -10 -9 ------------- Run | Scr Mat Mat Turns Passed 1020 | 40 786 194 Spaces Moved 770 | 35 628 107 Core 6 | 6 . . Treads . | . . . Legs . | . . . Wheels 764 | 29 628 107 Hover . | . . . Flight . | . . . Fastest Speed 50 | 50 90 90 Average Speed 94 | 83 95 90 Slowest Speed 100 | 100 100 100 Overloaded Moves . | . . . Propulsion Burnouts . | . . . Robots Hopped . | . . . Cave-ins Triggered . | . . . Exploration Rate (%) 34 | 3 87 13 Regions Visited 2 Branch Regions . Pre-discovered Areas . | . . . Known Exits Taken . | . . . Unknown Exits Taken 2 | 1 1 . Scrap Searched . | . . . Spaces Dug 3 | . 3 . Terrain Destroyed 3 | . 3 . Melee . | . . . Projectile 3 | . 3 . AOE . | . . . Actions | -11 -10 -9 --------- Run | Scr Mat Mat Total 935 | 42 738 155 Wait 44 | . 39 5 Move 768 | 34 627 107 Hop . | . . . Pick Up 16 | 2 9 5 Fast Attach 10 | 6 3 1 Attach 8 | . 2 6 Detach 3 | . 3 . Swap 8 | . 8 . Drop 12 | . 8 4 Fire 41 | . 39 2 Melee 24 | . . 24 Ram 1 | . . 1 Kick . | . . . Crush . | . . . Escape Stasis . | . . . Rewire . | . . . Trap . | . . . Miscellaneous . | . . . Route ------- -11/Scrapyard -10/Materials (discovered 2 exits: *Mat / [*Min]) -9/Materials History --------- Turn | Location | Event 16 | -11/Scrapyard | Discovered new exit (range 15) 41 | -11/Scrapyard | Entered Materials 265 | -10/Materials | Discovered new exit (range 16) 302 | -10/Materials | Build established: Mutant 438 | -10/Materials | Discovered new exit (range 13) 827 | -10/Materials | Entered another Materials area 827 | -9/Materials | Accompanied by 1 ally 827 | -9/Materials | Evolved 2 slots: Utility x2 955 | -9/Materials | Core integrity fell below 50% 997 | -9/Materials | Lost 8 parts (1p3n2u2w) 1016 | -9/Materials | Core integrity fell below 20% 1021 | -9/Materials | Destroyed by Y-45 Defender with Beam Rifle Last Messages --------------- 00968_ G-34 Mercenary misfires. 00970_ Destroyed Flight Unit. 00970_ S-10 Pest system corrupted by crushing effect. 00970_ Flight Unit fried. 00970_ S-10 Pest destroyed. 00977_ G-34 Mercenary misfires. 00977_ Acquired 18 matter. 00983_ G-34 Mercenary IFF system glitched. 00983_ Ion Engine fried. 00983_ G-34 Mercenary destroyed. 00999_ Imp. Sensor Array destroyed. 00999_ Destroyed Heat Sink. 00999_ Y-45 Defender system corrupted by crushing effect. 01000_ Y-45 Defender system terminally corrupted. 01000_ Imp. Ion Engine fried. 01000_ Wheel destroyed. 01010_ K-01 Serf collects debris. 01012_ Hrd. Light Armor Plating destroyed. 01012_ Cooling System destroyed. 01020_ K-01 Serf collects debris. Map ----- +----------------------------------------------------+ | ????????????????????????????????????? | | ????????????????????????????????????? | | ????????????????????????????????????? | | ????????????????????????????????????? | | ????????????????????????????????????? | | ????????????????????????????????????? | | ????????????????????????????????????? | | ????????????????????????????????????? | | ????????????????????????????????????? | | ????????????????????????????????????? | | ????????????????????????????????????? | | ????????????????????????????????????? | | ????????????????????????????????????? | | ???????????????? ??????????????????? | | ???????????????? "?????????????????? | | ???????????????? ?????????????????? | | ???????????????? = ?????????????????? | | ???????????????? ?????????????????? | | ??????????????## ?????????????????? | | ??????????????# ?????????????????? | | ??????????????? ?????????????????? | | ???????????????? ???????????????? | | ???????????????? g ??????????????? | | ???????????????? ?? ####?????????? | | ????????????????# #????kY%#?????????? | | ????????????????# #?????#@#?????????? | | ????????#####???# #?????#[#?????????? | | ???????[ //* ??# #???###g###???????? | | ?????? //* ##+##### =* #???????? | | ?????# //* # # #???????? | | ?????# # "%! + % +???????? | | ?????# """ """ # = # = #???????? | | ?????# """ """ # " [!]# k #???????? | | ?????? """ """ # !! #######???????? | | ???????? ??# !! #?????????????? | | ????????##/#####+######?????????????? | | ????????# #?????????????? | | ????????# #?????????????? | | ????????# #?????????????? | | ????????########### #?????????????? | | ??????????????????# #?????????????? | | ??????????????????# #?????????????? | | ??????????????????# #?????????????? | | ??????????????????# #?????????????? | | ??????????????????# #?????????????? | | ??????????????????# #?????????????? | | ??????????????????# #?????????????? | | ??????????????????# ########??????? | | ??????????????????# # #??????? | | ??????????????????# # """ #??????? | +----------------------------------------------------+ Best States ------------- Heat Dissipation 50 Energy Generation 10 Energy Capacity 250 Matter Stores 300 Matter Capacity 300 Sight Range 16 Robot Scan Range 13 Terrain Scan Density 10 Armor Coverage 150 Evasion (%) 42 Item Schematics ----------------- Ion Engine | -10/Materials | Hacked Com. Wheel | -10/Materials | Hacked Imp. Sensor Array | -9/Materials | Scanalyzed Mni. Grenade Launcher | -9/Materials | Scanalyzed Lgt. Armor Plating | -9/Materials | Scanalyzed Hvy. Hammer | -9/Materials | Scanalyzed Mining Laser | -9/Materials | Scanalyzed Wheel | -9/Materials | Scanalyzed Robot Schematics ------------------ None Fabricated ------------ Nothing Alien Tech Used ----------------- None Achievements -------------- None Challenges ------------ None Game ------ Seed NovaShieldPlating Manual? 0 Play Time 00:26:41 Cumulative 112.4 hours Start 2020.04.08 @ 18:12:56 End 2020.04.08 @ 18:42:01 Sessions 1 Manual Loads 0 Difficulty Rogue Special Mode None Game No. 54 Rogue 54 Adventurer 0 Explorer 0 Win Type - Total 4 Types 3/0/1/0/0/0/0 Lore% 59 Gallery% 70 Achievement% 51 Wizard Run 0 Options --------- ASCII 1 Keyboard 1 Movement Numpad Keybinds 0 Fullscreen 2 Font 18/SmallcapsGlow Map View 76x50 Tactical HUD 1 Map Filters NONE Filters NONE Steam 1 RUN: f42bf26f-94b2-4a96-a81c-15763ac7d441